[Event "*** SCC Grand Prix: Titled Tuesday Blitz"]
[Site "Chess.com"]
[Date "2020.06.09"]
[Round "1"]
[White "RaunakSadhwani2005"]
[Black "Majesth"]
[Result "1-0"]
[WhiteElo "2908"]
[BlackElo "2448"]
[TimeControl "180+1"]
[EndTime "9:06:48 PDT"]
[Termination "RaunakSadhwani2005 won on time"]

1. e4 {[%clk 0:02:57.7]} 1... e6 {[%clk 0:02:59.4]} 2. d4 {[%clk 0:02:55]} 2...
d5 {[%clk 0:02:59.7]} 3. Nc3 {[%clk 0:02:55.1]} 3... dxe4 {[%clk 0:02:59.1]} 4.
Nxe4 {[%clk 0:02:54.5]} 4... Nd7 {[%clk 0:02:59.7]} 5. Nf3 {[%clk 0:02:53.6]}
5... Ngf6 {[%clk 0:03:00.2]} 6. Nxf6+ {[%clk 0:02:52.9]} 6... Nxf6 {[%clk
0:03:01.1]} 7. Be3 {[%clk 0:02:52]} 7... Nd5 {[%clk 0:02:59.5]} 8. Bd2 {[%clk
0:02:47]} 8... c5 {[%clk 0:02:58.9]} 9. Bb5+ {[%clk 0:02:45.1]} 9... Bd7 {[%clk
0:02:57]} 10. Qe2 {[%clk 0:02:44.3]} 10... a6 {[%clk 0:02:37.9]} 11. Bxd7+
{[%clk 0:02:43.2]} 11... Qxd7 {[%clk 0:02:38.8]} 12. c4 {[%clk 0:02:40.6]} 12...
Nb4 {[%clk 0:02:24]} 13. Bxb4 {[%clk 0:02:32.3]} 13... cxb4 {[%clk 0:02:24.9]}
14. d5 {[%clk 0:02:28]} 14... Bc5 {[%clk 0:02:15.5]} 15. dxe6 {[%clk 0:02:27]}
15... Qxe6 {[%clk 0:02:16.4]} 16. Qxe6+ {[%clk 0:02:26.9]} 16... fxe6 {[%clk
0:02:16.6]} 17. O-O {[%clk 0:02:21.8]} 17... Ke7 {[%clk 0:01:59.7]} 18. Rfe1
{[%clk 0:02:18.4]} 18... Rad8 {[%clk 0:01:55.3]} 19. Ng5 {[%clk 0:02:14.9]}
19... Rd6 {[%clk 0:01:52.3]} 20. Ne4 {[%clk 0:02:09.3]} 20... Rc6 {[%clk
0:01:52.1]} 21. Rad1 {[%clk 0:02:06.8]} 21... Rd8 {[%clk 0:01:27.5]} 22. Kf1
{[%clk 0:02:03.8]} 22... Bd4 {[%clk 0:01:20.1]} 23. b3 {[%clk 0:02:01.5]} 23...
h6 {[%clk 0:01:15.5]} 24. Rd2 {[%clk 0:01:52.8]} 24... Bb6 {[%clk 0:00:53.5]}
25. Red1 {[%clk 0:01:49.1]} 25... Rxd2 {[%clk 0:00:51.8]} 26. Rxd2 {[%clk
0:01:50]} 26... Bc7 {[%clk 0:00:40]} 27. Ke2 {[%clk 0:01:46.8]} 27... Be5 {[%clk
0:00:30.7]} 28. h4 {[%clk 0:01:40.6]} 28... a5 {[%clk 0:00:30.9]} 29. g3 {[%clk
0:01:39.3]} 29... a4 {[%clk 0:00:30]} 30. f4 {[%clk 0:01:39.2]} 30... Bf6 {[%clk
0:00:19.7]} 31. c5 {[%clk 0:01:19.9]} 31... axb3 {[%clk 0:00:16.7]} 32. axb3
{[%clk 0:01:20.8]} 32... b6 {[%clk 0:00:16.1]} 33. cxb6 {[%clk 0:01:20.8]} 33...
Rxb6 {[%clk 0:00:17]} 34. Rc2 {[%clk 0:01:21.3]} 34... Rb7 {[%clk 0:00:12.1]}
35. h5 {[%clk 0:01:15.2]} 35... Ra7 {[%clk 0:00:09.5]} 36. Rc4 {[%clk
0:01:14.6]} 36... Ra2+ {[%clk 0:00:06]} 37. Kf3 {[%clk 0:01:14]} 37... Rh2
{[%clk 0:00:05.6]} 38. Kg4 {[%clk 0:01:11.4]} 38... Re2 {[%clk 0:00:02]} 39.
Rxb4 {[%clk 0:01:10]} 39... Re3 {[%clk 0:00:01.8]} 40. f5 {[%clk 0:00:58.7]} 1-0

[Event "*** SCC Grand Prix: Titled Tuesday Blitz"]
[Site "Chess.com"]
[Date "2020.06.09"]
[Round "1"]
[White "julinha97"]
[Black "Nbk90"]
[Result "0-1"]
[WhiteElo "2142"]
[BlackElo "2536"]
[TimeControl "180+1"]
[EndTime "9:06:48 PDT"]
[Termination "Nbk90 won on time"]

1. e4 {[%clk 0:02:47.8]} 1... e5 {[%clk 0:02:58.8]} 2. Nf3 {[%clk 0:02:46.2]}
2... Nc6 {[%clk 0:02:59]} 3. d4 {[%clk 0:02:46.2]} 3... exd4 {[%clk 0:02:58.5]}
4. Bc4 {[%clk 0:02:46.6]} 4... Nf6 {[%clk 0:02:56.8]} 5. e5 {[%clk 0:02:46.3]}
5... d5 {[%clk 0:02:56.5]} 6. Bb5 {[%clk 0:02:44.5]} 6... Nd7 {[%clk 0:02:56.6]}
7. O-O {[%clk 0:02:39.1]} 7... Be7 {[%clk 0:02:55.7]} 8. Bxc6 {[%clk 0:02:32.1]}
8... bxc6 {[%clk 0:02:55.3]} 9. e6 {[%clk 0:02:32.4]} 9... fxe6 {[%clk
0:02:49.9]} 10. Nxd4 {[%clk 0:02:31.4]} 10... Nb8 {[%clk 0:02:47.4]} 11. Qh5+
{[%clk 0:01:56.5]} 11... g6 {[%clk 0:02:46.4]} 12. Qe2 {[%clk 0:01:53.8]} 12...
Kf7 {[%clk 0:02:23]} 13. Re1 {[%clk 0:01:46.8]} 13... Bf6 {[%clk 0:02:07]} 14.
Nxe6 {[%clk 0:01:02]} 14... Qe7 {[%clk 0:02:05.4]} 15. Nf4 {[%clk 0:00:46]}
15... Qxe2 {[%clk 0:02:03.8]} 16. Rxe2 {[%clk 0:00:46.5]} 16... Bf5 {[%clk
0:01:57]} 17. c3 {[%clk 0:00:43.7]} 17... Nd7 {[%clk 0:01:56.3]} 18. Nd2 {[%clk
0:00:39.4]} 18... Rhe8 {[%clk 0:01:55]} 19. Nf3 {[%clk 0:00:37.1]} 19... g5
{[%clk 0:01:48.5]} 20. Rxe8 {[%clk 0:00:35.5]} 20... Rxe8 {[%clk 0:01:47.8]} 21.
Nh3 {[%clk 0:00:21.1]} 21... g4 {[%clk 0:01:37.8]} 22. Nhg5+ {[%clk 0:00:21.5]}
22... Kg7 {[%clk 0:01:29.1]} 23. Bf4 {[%clk 0:00:21]} 23... gxf3 {[%clk
0:01:27.2]} 24. Nxf3 {[%clk 0:00:20.6]} 24... Re2 {[%clk 0:01:21]} 25. Bxc7
{[%clk 0:00:11.2]} 25... Rxb2 {[%clk 0:01:20.2]} 26. h3 {[%clk 0:00:11.3]} 26...
Rb1+ {[%clk 0:01:18.3]} 27. Rxb1 {[%clk 0:00:10.7]} 27... Bxb1 {[%clk
0:01:19.2]} 28. a4 {[%clk 0:00:11]} 28... Bxc3 {[%clk 0:01:18.1]} 29. Ng5 {[%clk
0:00:11]} 29... Kg6 {[%clk 0:01:13.1]} 30. Ne6 {[%clk 0:00:10.7]} 30... Bc2
{[%clk 0:01:08.8]} 31. a5 {[%clk 0:00:10.7]} 31... d4 {[%clk 0:01:05.5]} 32. Nd8
{[%clk 0:00:02.4]} 32... d3 {[%clk 0:01:04.3]} 33. Bf4 {[%clk 0:00:02.7]} 33...
d2 {[%clk 0:01:00.3]} 34. Bxd2 {[%clk 0:00:03]} 34... Bxd2 {[%clk 0:01:00.7]}
35. Nxc6 {[%clk 0:00:03.9]} 35... a6 {[%clk 0:01:00]} 36. Kf1 {[%clk 0:00:01.5]}
36... Bd3+ {[%clk 0:00:57.5]} 37. Kg1 {[%clk 0:00:02]} 37... Bb5 {[%clk
0:00:57.4]} 38. Ne7+ {[%clk 0:00:02.3]} 38... Kf7 {[%clk 0:00:56.3]} 0-1

[Event "*** SCC Grand Prix: Titled Tuesday Blitz"]
[Site "Chess.com"]
[Date "2020.06.09"]
[Round "1"]
[White "Caterpiller35"]
[Black "GothamChess"]
[Result "1-0"]
[WhiteElo "2303"]
[BlackElo "2595"]
[TimeControl "180+1"]
[EndTime "9:06:49 PDT"]
[Termination "Caterpiller35 won on time"]

1. d4 {[%clk 0:03:00.3]} 1... e6 {[%clk 0:02:58.3]} 2. Nf3 {[%clk 0:02:59.2]}
2... b6 {[%clk 0:02:58.4]} 3. Bf4 {[%clk 0:02:56.7]} 3... Bb7 {[%clk 0:02:58.4]}
4. Nbd2 {[%clk 0:02:56.7]} 4... f5 {[%clk 0:02:58.5]} 5. e3 {[%clk 0:02:55.8]}
5... Nf6 {[%clk 0:02:58.4]} 6. h3 {[%clk 0:02:54]} 6... g6 {[%clk 0:02:58]} 7.
Bd3 {[%clk 0:02:51.3]} 7... Bg7 {[%clk 0:02:58.3]} 8. Qe2 {[%clk 0:02:49.9]}
8... O-O {[%clk 0:02:55.8]} 9. O-O-O {[%clk 0:02:46.8]} 9... Ne4 {[%clk
0:02:50.4]} 10. g4 {[%clk 0:02:43.5]} 10... d6 {[%clk 0:02:41.9]} 11. gxf5
{[%clk 0:02:33.1]} 11... exf5 {[%clk 0:02:34.5]} 12. h4 {[%clk 0:02:31]} 12...
Kh8 {[%clk 0:02:31.6]} 13. Rdg1 {[%clk 0:02:27.7]} 13... Bf6 {[%clk 0:02:30.2]}
14. h5 {[%clk 0:02:19.4]} 14... g5 {[%clk 0:02:30.1]} 15. Bxe4 {[%clk
0:02:15.3]} 15... fxe4 {[%clk 0:02:30.6]} 16. Nxg5 {[%clk 0:02:12.6]} 16... Qe8
{[%clk 0:02:30.8]} 17. Qc4 {[%clk 0:02:01.9]} 17... Na6 {[%clk 0:02:23.6]} 18.
Rh3 {[%clk 0:01:49.1]} 18... d5 {[%clk 0:02:18.4]} 19. Qe2 {[%clk 0:01:35.4]}
19... c5 {[%clk 0:02:17.4]} 20. Rhg3 {[%clk 0:01:06]} 20... cxd4 {[%clk
0:02:11]} 21. Nxh7 {[%clk 0:01:05.3]} 21... d3 {[%clk 0:01:35.1]} 22. Qg4 {[%clk
0:00:46.2]} 22... Qc8 {[%clk 0:01:17]} 23. Qxc8 {[%clk 0:00:36.8]} 23... Raxc8
{[%clk 0:01:17.9]} 24. Nxf8 {[%clk 0:00:32.3]} 24... Rxc2+ {[%clk 0:01:09.8]}
25. Kd1 {[%clk 0:00:29]} 25... Bg7 {[%clk 0:00:04.7]} 26. Rxg7 {[%clk
0:00:28.7]} 26... Rxd2+ {[%clk 0:00:02.3]} 27. Kxd2 {[%clk 0:00:28.7]} 1-0

[Event "*** SCC Grand Prix: Titled Tuesday Blitz"]
[Site "Chess.com"]
[Date "2020.06.09"]
[Round "1"]
[White "Bastiandash"]
[Black "thedjoker98"]
[Result "1/2-1/2"]
[WhiteElo "2170"]
[BlackElo "2538"]
[TimeControl "180+1"]
[EndTime "9:06:49 PDT"]
[Termination "Game drawn by repetition"]

1. Nf3 {[%clk 0:03:00.7]} 1... d5 {[%clk 0:02:59.5]} 2. d4 {[%clk 0:03:01.6]}
2... Nf6 {[%clk 0:02:58.2]} 3. c3 {[%clk 0:03:02.5]} 3... c6 {[%clk 0:02:53.5]}
4. Bg5 {[%clk 0:03:03.1]} 4... Ne4 {[%clk 0:02:53]} 5. Bf4 {[%clk 0:03:02.6]}
5... Bf5 {[%clk 0:02:49.8]} 6. Nbd2 {[%clk 0:03:01.6]} 6... e6 {[%clk
0:02:47.8]} 7. Nxe4 {[%clk 0:02:57.5]} 7... Bxe4 {[%clk 0:02:48.7]} 8. Nd2
{[%clk 0:02:57.3]} 8... Bg6 {[%clk 0:02:42.9]} 9. e3 {[%clk 0:02:54]} 9... Nd7
{[%clk 0:02:38.4]} 10. Be2 {[%clk 0:02:53.9]} 10... Be7 {[%clk 0:02:38.3]} 11.
O-O {[%clk 0:02:52.9]} 11... O-O {[%clk 0:02:38.8]} 12. Bf3 {[%clk 0:02:51.1]}
12... f6 {[%clk 0:02:37.6]} 13. Bg3 {[%clk 0:02:47.5]} 13... c5 {[%clk
0:02:33.6]} 14. Qe2 {[%clk 0:02:45.7]} 14... Qb6 {[%clk 0:02:31.6]} 15. b3
{[%clk 0:02:40.5]} 15... Bd6 {[%clk 0:02:31.5]} 16. Bxd6 {[%clk 0:02:34.9]}
16... Qxd6 {[%clk 0:02:32.4]} 17. Rad1 {[%clk 0:02:31.3]} 17... Rac8 {[%clk
0:02:28.5]} 18. e4 {[%clk 0:02:29.4]} 18... cxd4 {[%clk 0:02:25.3]} 19. cxd4
{[%clk 0:02:28.4]} 19... dxe4 {[%clk 0:02:12.1]} 20. Nxe4 {[%clk 0:02:29.3]}
20... Qb6 {[%clk 0:02:10.6]} 21. d5 {[%clk 0:02:14]} 21... exd5 {[%clk 0:02:03]}
22. Rxd5 {[%clk 0:02:14.9]} 22... Ne5 {[%clk 0:02:03.2]} 23. Nd6 {[%clk
0:01:57.4]} 23... Rcd8 {[%clk 0:01:49.2]} 24. Nc4 {[%clk 0:01:56.7]} 24... Nxc4
{[%clk 0:01:32.4]} 25. Qxc4 {[%clk 0:01:52.9]} 25... Bf7 {[%clk 0:01:30.9]} 26.
Rxd8 {[%clk 0:00:34.6]} 26... Bxc4 {[%clk 0:01:27.5]} 27. Rxf8+ {[%clk
0:00:35.5]} 27... Kxf8 {[%clk 0:01:28]} 28. bxc4 {[%clk 0:00:36.4]} 28... Qb2
{[%clk 0:01:26.2]} 29. h4 {[%clk 0:00:33.4]} 29... Qxa2 {[%clk 0:01:23.3]} 30.
Bxb7 {[%clk 0:00:32.6]} 30... Qxc4 {[%clk 0:01:23.5]} 31. Rb1 {[%clk 0:00:30.8]}
31... Qxh4 {[%clk 0:01:21.7]} 32. Bf3 {[%clk 0:00:28.8]} 32... Qf4 {[%clk
0:01:19.6]} 33. Rb7 {[%clk 0:00:27.8]} 33... a5 {[%clk 0:01:19.2]} 34. Ra7
{[%clk 0:00:26.9]} 34... a4 {[%clk 0:01:19]} 35. Ra8+ {[%clk 0:00:20.5]} 35...
Kf7 {[%clk 0:01:19.2]} 36. Ra7+ {[%clk 0:00:21.4]} 36... Kg6 {[%clk 0:01:18.1]}
37. Be2 {[%clk 0:00:21.3]} 37... a3 {[%clk 0:01:14.3]} 38. g3 {[%clk 0:00:21.2]}
38... Qc1+ {[%clk 0:01:10]} 39. Kg2 {[%clk 0:00:21.3]} 39... Qb2 {[%clk
0:01:05.6]} 40. Bd3+ {[%clk 0:00:20]} 40... Kh6 {[%clk 0:01:05.6]} 41. Ra4
{[%clk 0:00:18.8]} 41... g5 {[%clk 0:00:59.7]} 42. Ra7 {[%clk 0:00:18.6]} 42...
g4 {[%clk 0:00:51]} 43. Rxh7+ {[%clk 0:00:17.9]} 43... Kg5 {[%clk 0:00:51.4]}
44. Rg7+ {[%clk 0:00:18.1]} 44... Kh5 {[%clk 0:00:51.8]} 45. Rh7+ {[%clk
0:00:18.7]} 45... Kg5 {[%clk 0:00:52.3]} 46. Rg7+ {[%clk 0:00:18.7]} 46... Kh6
{[%clk 0:00:52.7]} 47. Rh7+ {[%clk 0:00:16.3]} 47... Kg5 {[%clk 0:00:52.2]}
1/2-1/2

[Event "*** SCC Grand Prix: Titled Tuesday Blitz"]
[Site "Chess.com"]
[Date "2020.06.09"]
[Round "1"]
[White "Muracle"]
[Black "politeplayer"]
[Result "0-1"]
[WhiteElo "2585"]
[BlackElo "2287"]
[TimeControl "180+1"]
[EndTime "9:06:50 PDT"]
[Termination "politeplayer won by resignation"]

1. d4 {[%clk 0:02:59.2]} 1... Nf6 {[%clk 0:02:58.9]} 2. c4 {[%clk 0:02:58.2]}
2... g6 {[%clk 0:02:58.6]} 3. Nc3 {[%clk 0:02:57.2]} 3... Bg7 {[%clk 0:02:58.8]}
4. e4 {[%clk 0:02:57]} 4... O-O {[%clk 0:02:59.1]} 5. Nf3 {[%clk 0:02:55.3]}
5... d6 {[%clk 0:02:59.2]} 6. h3 {[%clk 0:02:55.3]} 6... c5 {[%clk 0:02:57]} 7.
d5 {[%clk 0:02:55.1]} 7... e6 {[%clk 0:02:55.6]} 8. Be2 {[%clk 0:02:51]} 8...
exd5 {[%clk 0:02:54.9]} 9. exd5 {[%clk 0:02:51.9]} 9... Bf5 {[%clk 0:02:49.2]}
10. Bd2 {[%clk 0:02:37.1]} 10... Ne4 {[%clk 0:02:47.6]} 11. Nxe4 {[%clk
0:02:36.7]} 11... Bxe4 {[%clk 0:02:47.5]} 12. Bc3 {[%clk 0:02:37.2]} 12... Bxc3+
{[%clk 0:02:40.7]} 13. bxc3 {[%clk 0:02:38.1]} 13... Bxf3 {[%clk 0:02:37.7]} 14.
Bxf3 {[%clk 0:02:36.3]} 14... Re8+ {[%clk 0:02:37.5]} 15. Kf1 {[%clk 0:02:17.3]}
15... Qf6 {[%clk 0:02:33.8]} 16. Qd2 {[%clk 0:02:06.5]} 16... Nd7 {[%clk
0:02:30.9]} 17. Be2 {[%clk 0:02:06.2]} 17... Re7 {[%clk 0:02:20.2]} 18. Re1
{[%clk 0:01:57.5]} 18... Rae8 {[%clk 0:02:19.1]} 19. g3 {[%clk 0:01:48.5]} 19...
Nb6 {[%clk 0:01:58.7]} 20. Kg2 {[%clk 0:01:39.7]} 20... Na4 {[%clk 0:01:59]} 21.
Bg4 {[%clk 0:01:36.9]} 21... Rxe1 {[%clk 0:01:46.8]} 22. Rxe1 {[%clk 0:01:33.7]}
22... Rxe1 {[%clk 0:01:45.1]} 23. Qxe1 {[%clk 0:01:34.6]} 23... Nxc3 {[%clk
0:01:42]} 24. Qe8+ {[%clk 0:01:29.3]} 24... Kg7 {[%clk 0:01:41.2]} 25. h4 {[%clk
0:00:56.1]} 25... h5 {[%clk 0:01:36.2]} 26. Bc8 {[%clk 0:00:54.9]} 26... b6
{[%clk 0:01:23.5]} 27. Bh3 {[%clk 0:00:39.1]} 27... Qd4 {[%clk 0:01:14]} 28. Kg1
{[%clk 0:00:26.1]} 28... Ne4 {[%clk 0:01:09.2]} 29. Kh1 {[%clk 0:00:20.7]} 29...
Nxf2+ {[%clk 0:01:04]} 30. Kh2 {[%clk 0:00:17.1]} 30... Qd2 {[%clk 0:00:52.1]}
31. Bg2 {[%clk 0:00:15.8]} 31... Ng4+ {[%clk 0:00:51.5]} 32. Kh3 {[%clk
0:00:16.1]} 32... Ne3 {[%clk 0:00:44.1]} 33. Be4 {[%clk 0:00:14.9]} 33... Ng4
{[%clk 0:00:39.3]} 34. Bg2 {[%clk 0:00:14.3]} 34... Qe3 {[%clk 0:00:33.5]} 0-1

[Event "*** SCC Grand Prix: Titled Tuesday Blitz"]
[Site "Chess.com"]
[Date "2020.06.09"]
[Round "1"]
[White "aleksandrovaleksei"]
[Black "ARTHURMOTIVATOR"]
[Result "1-0"]
[WhiteElo "2595"]
[BlackElo "2265"]
[TimeControl "180+1"]
[EndTime "9:06:51 PDT"]
[Termination "aleksandrovaleksei won on time"]

1. d4 {[%clk 0:03:00.8]} 1... g6 {[%clk 0:02:53.9]} 2. e4 {[%clk 0:02:59.8]}
2... Bg7 {[%clk 0:02:52.7]} 3. Be3 {[%clk 0:02:59.2]} 3... c6 {[%clk 0:02:52.2]}
4. h3 {[%clk 0:02:50.6]} 4... d5 {[%clk 0:02:49.1]} 5. e5 {[%clk 0:02:50]} 5...
f6 {[%clk 0:02:36.9]} 6. Nf3 {[%clk 0:02:41.9]} 6... Nh6 {[%clk 0:02:33.1]} 7.
g4 {[%clk 0:02:41.3]} 7... Nf7 {[%clk 0:02:30.1]} 8. exf6 {[%clk 0:02:38.6]}
8... exf6 {[%clk 0:02:28.1]} 9. c4 {[%clk 0:02:32.7]} 9... O-O {[%clk
0:02:17.9]} 10. Nc3 {[%clk 0:02:32.1]} 10... Be6 {[%clk 0:02:01.8]} 11. cxd5
{[%clk 0:02:16.4]} 11... cxd5 {[%clk 0:02:00.9]} 12. Bg2 {[%clk 0:02:12.9]}
12... Nc6 {[%clk 0:01:55.1]} 13. O-O {[%clk 0:02:12]} 13... Nd6 {[%clk
0:01:40.2]} 14. Re1 {[%clk 0:01:57.4]} 14... Bf7 {[%clk 0:01:21.8]} 15. Nd2
{[%clk 0:01:53.4]} 15... Ne7 {[%clk 0:01:10.5]} 16. Qb3 {[%clk 0:01:38.5]} 16...
Nc4 {[%clk 0:01:05.5]} 17. Nxc4 {[%clk 0:01:35.3]} 17... dxc4 {[%clk 0:01:04.7]}
18. Qxb7 {[%clk 0:01:35.6]} 18... Rb8 {[%clk 0:01:03.8]} 19. Qxa7 {[%clk
0:01:35]} 19... Rxb2 {[%clk 0:01:03.1]} 20. d5 {[%clk 0:01:25.3]} 20... f5
{[%clk 0:00:51.9]} 21. Bd4 {[%clk 0:01:23.6]} 21... Nc8 {[%clk 0:00:39.9]} 22.
Qc5 {[%clk 0:01:22.2]} 22... Bxd4 {[%clk 0:00:35.9]} 23. Qxd4 {[%clk 0:01:21.7]}
23... fxg4 {[%clk 0:00:36]} 24. hxg4 {[%clk 0:00:54.2]} 24... Nd6 {[%clk
0:00:24.4]} 25. Ne4 {[%clk 0:00:53.3]} 25... Qb6 {[%clk 0:00:24.1]} 26. Nf6+
{[%clk 0:00:45.9]} 26... Kh8 {[%clk 0:00:22.3]} 27. Qxb6 {[%clk 0:00:45.8]}
27... Rxb6 {[%clk 0:00:21]} 28. Nd7 {[%clk 0:00:46.7]} 28... Rfb8 {[%clk
0:00:18.8]} 29. a4 {[%clk 0:00:45.6]} 29... c3 {[%clk 0:00:16.2]} 30. a5 {[%clk
0:00:45]} 30... R6b7 {[%clk 0:00:14.4]} 31. Nxb8 {[%clk 0:00:44.3]} 31... Rxb8
{[%clk 0:00:14.2]} 32. Rec1 {[%clk 0:00:43.8]} 32... Nb5 {[%clk 0:00:09.3]} 33.
Rab1 {[%clk 0:00:43.3]} 33... Be8 {[%clk 0:00:09.3]} 34. Bf1 {[%clk 0:00:42.9]}
34... Kg7 {[%clk 0:00:07.1]} 35. a6 {[%clk 0:00:41.5]} 1-0

[Event "*** SCC Grand Prix: Titled Tuesday Blitz"]
[Site "Chess.com"]
[Date "2020.06.09"]
[Round "1"]
[White "TargetA"]
[Black "TheBigBadChessDad"]
[Result "1-0"]
[WhiteElo "2580"]
[BlackElo "2238"]
[TimeControl "180+1"]
[EndTime "9:06:51 PDT"]
[Termination "TargetA won on time"]

1. e4 {[%clk 0:02:59.7]} 1... e5 {[%clk 0:02:59.5]} 2. Nf3 {[%clk 0:02:59.1]}
2... Nf6 {[%clk 0:03:00]} 3. Nc3 {[%clk 0:02:58.5]} 3... Nc6 {[%clk 0:02:59.6]}
4. Bb5 {[%clk 0:02:57.3]} 4... Bb4 {[%clk 0:02:59.2]} 5. O-O {[%clk 0:02:54.5]}
5... O-O {[%clk 0:02:59.2]} 6. d3 {[%clk 0:02:52.3]} 6... Bxc3 {[%clk
0:02:59.4]} 7. bxc3 {[%clk 0:02:51.5]} 7... d6 {[%clk 0:03:00.2]} 8. Bg5 {[%clk
0:02:47.2]} 8... h6 {[%clk 0:03:00.5]} 9. Bh4 {[%clk 0:02:47.2]} 9... Bg4 {[%clk
0:03:00.3]} 10. h3 {[%clk 0:02:42.6]} 10... Bxf3 {[%clk 0:03:00.5]} 11. Qxf3
{[%clk 0:02:41.6]} 11... g5 {[%clk 0:03:01.1]} 12. Bg3 {[%clk 0:02:40.7]} 12...
Nd7 {[%clk 0:02:55.5]} 13. Rab1 {[%clk 0:02:35]} 13... Kg7 {[%clk 0:02:43.1]}
14. Bc4 {[%clk 0:02:28.2]} 14... Na5 {[%clk 0:02:30.9]} 15. Bb3 {[%clk
0:02:26.5]} 15... Nxb3 {[%clk 0:02:18.6]} 16. axb3 {[%clk 0:02:27.4]} 16... a5
{[%clk 0:02:15.9]} 17. d4 {[%clk 0:02:25.7]} 17... f6 {[%clk 0:02:15.6]} 18. Qg4
{[%clk 0:02:20.6]} 18... Qe7 {[%clk 0:02:11.5]} 19. f4 {[%clk 0:02:19.1]} 19...
exf4 {[%clk 0:01:51.3]} 20. Bxf4 {[%clk 0:02:18.8]} 20... Rf7 {[%clk 0:01:47.6]}
21. Rbe1 {[%clk 0:02:10.9]} 21... a4 {[%clk 0:01:40.8]} 22. bxa4 {[%clk
0:02:06.9]} 22... Rxa4 {[%clk 0:01:40]} 23. Bd2 {[%clk 0:01:59]} 23... Ra2
{[%clk 0:01:30.5]} 24. Qd1 {[%clk 0:01:57.7]} 24... Nb6 {[%clk 0:01:15.1]} 25.
Qb1 {[%clk 0:01:53.9]} 25... Ra7 {[%clk 0:01:04.8]} 26. Qb3 {[%clk 0:01:50]}
26... Qd7 {[%clk 0:00:43.7]} 27. c4 {[%clk 0:01:34]} 27... Qa4 {[%clk
0:00:40.9]} 28. c5 {[%clk 0:01:34.3]} 28... Qxb3 {[%clk 0:00:37.3]} 29. cxb3
{[%clk 0:01:35.2]} 29... dxc5 {[%clk 0:00:37.3]} 30. dxc5 {[%clk 0:01:35.8]}
30... Nd7 {[%clk 0:00:36.8]} 31. b4 {[%clk 0:01:34.6]} 31... Ne5 {[%clk
0:00:34.6]} 32. Bc3 {[%clk 0:01:34]} 32... Re7 {[%clk 0:00:34.8]} 33. Rd1 {[%clk
0:01:31.9]} 33... Ra3 {[%clk 0:00:29.7]} 34. Bd4 {[%clk 0:01:21.5]} 34... Rb3
{[%clk 0:00:26.1]} 35. Rb1 {[%clk 0:01:19.6]} 35... Rxb1 {[%clk 0:00:26.1]} 36.
Rxb1 {[%clk 0:01:20.5]} 36... Nc6 {[%clk 0:00:26.1]} 37. Bc3 {[%clk 0:01:19.7]}
37... Rxe4 {[%clk 0:00:26.7]} 38. b5 {[%clk 0:01:19]} 38... Ne5 {[%clk
0:00:26.1]} 39. Rd1 {[%clk 0:01:18.6]} 39... Kf7 {[%clk 0:00:20.7]} 40. Rd8
{[%clk 0:01:16.1]} 40... Ke7 {[%clk 0:00:14.4]} 41. Rb8 {[%clk 0:01:14.7]} 41...
Nd7 {[%clk 0:00:12.4]} 42. Rxb7 {[%clk 0:01:13.3]} 42... Rc4 {[%clk 0:00:12.3]}
43. Ba5 {[%clk 0:01:10.5]} 43... Rxc5 {[%clk 0:00:11.9]} 44. Bb4 {[%clk
0:01:10.6]} 44... Kd6 {[%clk 0:00:10.7]} 45. Ra7 {[%clk 0:01:06.3]} 45... f5
{[%clk 0:00:04.8]} 46. Kf2 {[%clk 0:01:04.9]} 1-0

[Event "*** SCC Grand Prix: Titled Tuesday Blitz"]
[Site "Chess.com"]
[Date "2020.06.09"]
[Round "1"]
[White "GOGIEFF"]
[Black "totoro9"]
[Result "1/2-1/2"]
[WhiteElo "2896"]
[BlackElo "2521"]
[TimeControl "180+1"]
[EndTime "9:06:52 PDT"]
[Termination "Game drawn by repetition"]

1. d4 {[%clk 0:02:57.3]} 1... Nf6 {[%clk 0:02:59.3]} 2. c4 {[%clk 0:02:52.5]}
2... g6 {[%clk 0:02:59.4]} 3. Nc3 {[%clk 0:02:51.6]} 3... Bg7 {[%clk 0:02:53.4]}
4. e4 {[%clk 0:02:50.2]} 4... d6 {[%clk 0:02:53.2]} 5. Be2 {[%clk 0:02:49.4]}
5... O-O {[%clk 0:02:50.2]} 6. Bg5 {[%clk 0:02:49.9]} 6... c6 {[%clk 0:02:40]}
7. Nf3 {[%clk 0:02:41.3]} 7... Na6 {[%clk 0:02:29.9]} 8. O-O {[%clk 0:02:30.9]}
8... Nc7 {[%clk 0:02:28.9]} 9. e5 {[%clk 0:02:19.7]} 9... dxe5 {[%clk
0:02:24.5]} 10. dxe5 {[%clk 0:02:18.7]} 10... Nd7 {[%clk 0:02:23.6]} 11. Bf4
{[%clk 0:02:00.9]} 11... Ne6 {[%clk 0:02:22.6]} 12. Bg3 {[%clk 0:00:50.7]} 12...
Qa5 {[%clk 0:02:22.3]} 13. Qe1 {[%clk 0:00:48.5]} 13... Nxe5 {[%clk 0:02:19.7]}
14. Nxe5 {[%clk 0:00:47.1]} 14... Bxe5 {[%clk 0:02:17.5]} 15. Nd5 {[%clk
0:00:47.8]} 15... Qxe1 {[%clk 0:02:12]} 16. Nxe7+ {[%clk 0:00:47.7]} 16... Kg7
{[%clk 0:01:56.7]} 17. Bxe5+ {[%clk 0:00:48.6]} 17... f6 {[%clk 0:01:54]} 18.
Rfxe1 {[%clk 0:00:49.5]} 18... fxe5 {[%clk 0:01:53]} 19. Bg4 {[%clk 0:00:50.1]}
19... Rf4 {[%clk 0:01:18]} 20. Bh3 {[%clk 0:00:34.4]} 20... Kf6 {[%clk
0:00:50.5]} 21. Nxc8 {[%clk 0:00:34.2]} 21... Rxc8 {[%clk 0:00:50]} 22. Rad1
{[%clk 0:00:34.9]} 22... Rd8 {[%clk 0:00:43.2]} 23. Rxd8 {[%clk 0:00:30.9]}
23... Nxd8 {[%clk 0:00:43.1]} 24. b3 {[%clk 0:00:31.6]} 24... Rd4 {[%clk
0:00:38.7]} 25. g3 {[%clk 0:00:31.9]} 25... Ne6 {[%clk 0:00:32.7]} 26. f4 {[%clk
0:00:30.7]} 26... e4 {[%clk 0:00:30.5]} 27. Bxe6 {[%clk 0:00:29.6]} 27... Kxe6
{[%clk 0:00:29.8]} 28. Kf2 {[%clk 0:00:30.5]} 28... Kf5 {[%clk 0:00:22.1]} 29.
Ke2 {[%clk 0:00:30.6]} 29... h5 {[%clk 0:00:19.8]} 30. Rg1 {[%clk 0:00:27.1]}
30... Rd3 {[%clk 0:00:13.2]} 31. h3 {[%clk 0:00:26.3]} 31... Rc3 {[%clk
0:00:11.3]} 32. Kd2 {[%clk 0:00:25.2]} 32... Rd3+ {[%clk 0:00:11.4]} 33. Ke2
{[%clk 0:00:25.4]} 33... Rc3 {[%clk 0:00:11.4]} 34. Kd2 {[%clk 0:00:24.4]} 34...
Rd3+ {[%clk 0:00:11.6]} 35. Ke2 {[%clk 0:00:23.8]} 1/2-1/2